fUSD/lending_fUSD_20240328
["ID","MTS","AMOUNT","RATE_DAILY","PERIOD"]
[320836978,1711609855369,-500.0,0.00054246,120]
[320836979,1711609855381,-812.08,0.00054246,120]
[320836980,1711609855391,-503.32471083,0.00054246,120]
[320836981,1711609855402,-500.0,0.00054246,120]
[320836982,1711609855412,-500.0,0.00054246,120]
[320836983,1711609855422,-670.97,0.00054246,120]
[320836984,1711609855431,-500.0,0.00054246,120]
[320836985,1711609855441,-500.0,0.00054246,120]
[320836986,1711609855451,-500.0,0.00054246,120]
[320836987,1711609855460,-500.0,0.00054246,120]
[320836988,1711609855470,-505.51635207,0.00054246,120]
[320836989,1711609855479,-500.0,0.00054246,120]
[320836990,1711609855488,-500.0,0.00054246,120]
[320836991,1711609855498,-500.0,0.00054246,120]
[320836992,1711609855508,-500.0,0.00054246,120]
[320836993,1711609855517,-500.0,0.00054246,120]
[320836994,1711609855527,-504.48085178,0.00054246,120]
[320836995,1711609855538,-500.0,0.00054246,120]
[320836996,1711609855548,-500.0,0.00054246,120]
[320836997,1711609855557,-500.0,0.00054246,120]
[320836998,1711609855567,-393.26388122,0.00054246,120]
[320836999,1711609855578,-500.0,0.00054246,120]
[320837000,1711609855587,-503.76730349,0.00054246,120]
[320837001,1711609855597,-500.0,0.00054246,120]
[320837002,1711609855607,-500.0,0.00054246,120]
[320837003,1711609855617,-500.0,0.00054246,120]
[320837004,1711609855629,-500.0,0.00054246,120]
[320837005,1711609855639,-500.0,0.00054246,120]
[320837006,1711609855649,-500.0,0.00054246,120]
[320837007,1711609855658,-500.0,0.00054246,120]
[320837008,1711609855668,-500.0,0.00054246,120]
[320837009,1711609855677,-523.42,0.00054246,120]
[320837010,1711609855687,-517.94,0.00054246,120]
[320837011,1711609855696,-500.0,0.00054246,120]
[320837012,1711609855706,-500.0,0.00054246,120]
[320837013,1711609855715,-500.0,0.00054246,120]
[320837014,1711609855725,-504.67200373,0.00054246,120]
[320837015,1711609855734,-500.0,0.00054246,120]
[320837016,1711609855743,-500.0,0.00054246,120]
[320837017,1711609855753,-500.0,0.00054246,120]
[320837018,1711609855762,-500.0,0.00054246,120]
[320837019,1711609855771,-500.0,0.00054246,120]
[320837020,1711609855784,-506.60341241,0.00054246,120]
[320837021,1711609855795,-1226.37,0.00054246,120]
[320837022,1711609855806,-500.0,0.00054246,120]
[320837023,1711609855819,-500.0,0.00054246,120]
[320837024,1711609855831,-500.0,0.00054246,120]
[320837025,1711609855841,-846.1,0.00054246,120]
[320837026,1711609855852,-500.0,0.00054246,120]
[320837027,1711609855863,-500.0,0.00054246,120]
[320837028,1711609855874,-500.0,0.00054246,120]
[320837029,1711609855883,-500.0,0.00054246,120]
[320837030,1711609855894,-503.21470094,0.00054246,120]
[320837031,1711609855904,-500.0,0.00054246,120]
[320837032,1711609855914,-500.0,0.00054246,120]
[320837033,1711609855925,-500.0,0.00054246,120]
[320837034,1711609855935,-646.58,0.00054246,120]
[320837035,1711609855946,-500.0,0.00054246,120]
[320837036,1711609855959,-500.0,0.00054246,120]
[320837037,1711609855970,-500.0,0.00054246,120]
[320837038,1711609855982,-500.0,0.00054246,120]
[320837039,1711609855991,-503.69,0.00054246,120]
[320837040,1711609856002,-500.0,0.00054246,120]
[320837041,1711609856012,-500.0,0.00054246,120]
[320837042,1711609856022,-502.45270104,0.00054246,120]
[320837043,1711609856033,-500.0,0.00054246,120]
[320837044,1711609856043,-500.0,0.00054246,120]
[320837045,1711609856053,-500.0,0.00054246,120]
[320837046,1711609856063,-503.75904446,0.00054246,120]
[320837047,1711609856072,-502.21011515,0.00054246,120]
[320837048,1711609856082,-500.0,0.00054246,120]
[320837049,1711609856091,-500.0,0.00054246,120]
[320837050,1711609856101,-726.26,0.00054246,120]
[320837051,1711609856111,-500.0,0.00054246,120]
[320837052,1711609856122,-500.0,0.00054246,120]
[320837053,1711609856131,-500.0,0.00054246,120]
[320837054,1711609856141,-500.0,0.00054246,120]
[320837055,1711609856150,-501.81590482,0.00054246,120]
[320837056,1711609856161,-500.9171358,0.00054246,120]
[320837057,1711609856171,-500.0,0.00054246,120]
[320837058,1711609856180,-500.0,0.00054246,120]
[320837059,1711609856190,-1839.24,0.00054246,120]
[320837060,1711609856199,-500.0,0.00054246,120]
[320837061,1711609856209,-502.82806741,0.00054246,120]
[320837062,1711609856219,-1839.24,0.00054246,120]
[320837063,1711609856229,-1839.24,0.00054246,120]
[320837064,1711609856239,-1839.24,0.00054246,120]
[320837065,1711609856248,-513.0650528,0.00054246,120]
[320837066,1711609856258,-1839.24,0.00054246,120]
[320837067,1711609856268,-1839.24,0.00054246,120]
[320837068,1711609856278,-1839.24,0.00054246,120]
[320837069,1711609856287,-500.0,0.00054246,120]
[320837070,1711609856297,-500.0,0.00054246,120]
[320837071,1711609856306,-1839.24,0.00054246,120]
[320837072,1711609856319,-500.0,0.00054246,120]
[320837073,1711609856329,-500.0,0.00054246,120]
[320837074,1711609856338,-412.33380574,0.00054246,120]
[320837075,1711609856348,-747.6,0.00054246,120]
[320837076,1711609856358,-500.0,0.00054246,120]
[320837077,1711609856368,-1322.4,0.00054246,120]
[320837078,1711609856378,-506.60357602,0.00054246,120]
[320837079,1711609856388,-512.59387337,0.00054246,120]
[320837080,1711609856397,-500.0,0.00054246,120]
[320837081,1711609856407,-503.47106291,0.00054246,120]
[320837082,1711609856416,-505.42784291,0.00054246,120]
[320837083,1711609856425,-816.56,0.00054246,120]
[320837084,1711609856435,-500.0,0.00054246,120]
[320837085,1711609856444,-500.0,0.00054246,120]
[320837086,1711609856454,-503.39414735,0.00054246,120]
[320837087,1711609856463,-501.41554902,0.00054246,120]
[320837088,1711609856473,-508.28842428,0.00054246,120]
[320837089,1711609856482,-500.0,0.00054246,120]
[320837090,1711609856492,-500.0,0.00054246,120]
[320837091,1711609856501,-508.18616647,0.00054246,120]
[320837092,1711609856510,-505.05255764,0.00054246,120]
[320837093,1711609856520,-500.0,0.00054246,120]
[320837094,1711609856529,-502.90659093,0.00054246,120]
[320837095,1711609856539,-501.37915906,0.00054246,120]
[320837096,1711609856548,-500.0,0.00054246,120]
[320837097,1711609856558,-500.0,0.00054246,120]
[320837098,1711609856567,-500.0,0.00054246,120]
[320837099,1711609856577,-504.88218655,0.00054246,120]
[320837100,1711609856586,-500.0,0.00054246,120]
[320837101,1711609856595,-500.0,0.00054246,120]
[320837102,1711609856604,-500.0,0.00054246,120]
[320837103,1711609856614,-507.15243563,0.00054246,120]
[320837104,1711609856623,-500.0,0.00054246,2]
[320837105,1711609856632,-500.0,0.00054246,120]
[320837106,1711609856641,-500.0,0.00054246,120]
[320837107,1711609856650,-500.0,0.00054246,120]
[320837108,1711609856660,-500.0,0.00054246,120]
[320837109,1711609856669,-500.0,0.00054246,120]
[320837110,1711609856678,-569.36,0.00054246,120]
[320837111,1711609856688,-500.0,0.00054246,120]
[320837112,1711609856697,-500.0,0.00054246,120]
[320837113,1711609856707,-508.23284357,0.00054246,120]
[320837114,1711609856717,-501.72478488,0.00054246,120]
[320837115,1711609856726,-500.0,0.00054246,120]
[320837116,1711609856737,-500.0,0.00054246,120]
[320837117,1711609856747,-508.29956793,0.00054246,120]
[320837118,1711609856759,-510.68294652,0.00054246,120]
[320837119,1711609856769,-544.04,0.00054246,120]
[320837120,1711609856908,-500.0,0.00054246,120]
[320837121,1711609856918,-509.29623337,0.00054246,120]
[320837122,1711609856927,-500.0,0.00054246,120]
[320837123,1711609856937,-1243.57,0.00054246,120]
[320837124,1711609856946,-505.30370388,0.00054246,120]
[320837125,1711609856956,-500.0,0.00054246,120]
[320837126,1711609856967,-500.0,0.00054246,120]
[320837127,1711609856976,-506.92181279,0.00054246,120]
[320837128,1711609856985,-500.0,0.00054246,120]
[320837129,1711609856994,-500.0,0.00054246,120]
[320837130,1711609857005,-500.0,0.00054246,120]
[320837131,1711609857014,-508.37248691,0.00054246,120]
[320837132,1711609857024,-511.18502596,0.00054246,120]
[320837133,1711609857033,-501.53182948,0.00054246,120]
[320837134,1711609857044,-507.75932372,0.00054246,120]
[320837135,1711609857053,-685.97,0.00054246,120]
[320837136,1711609857063,-500.0,0.00054246,120]
[320837137,1711609857072,-508.32217614,0.00054246,120]
[320837138,1711609857081,-506.29554261,0.00054246,120]
[320837139,1711609857091,-500.0,0.00054246,120]
[320837140,1711609857100,-500.0,0.00054246,120]
[320837141,1711609857109,-848.94,0.00054246,120]
[320837142,1711609857118,-500.0,0.00054246,120]
[320837143,1711609857130,-506.02297598,0.00054246,120]
[320837144,1711609857140,-500.0,0.00054246,120]
[320837145,1711609857149,-632.34,0.00054246,120]
[320837146,1711609857159,-500.0,0.00054246,120]
[320837147,1711609857168,-500.0,0.00054246,120]
[320837148,1711609857177,-500.0,0.00054246,120]
[320837149,1711609857187,-500.0,0.00054246,120]
[320837150,1711609857196,-506.59841067,0.00054246,120]
[320837151,1711609857205,-500.0,0.00054246,120]
[320837152,1711609857215,-509.16246819,0.00054246,120]
[320837153,1711609857225,-500.0,0.00054246,120]
[320837154,1711609857235,-500.0,0.00054246,120]
[320837155,1711609857245,-504.43990109,0.00054246,120]
[320837156,1711609857254,-507.68563569,0.00054246,120]
[320837157,1711609857263,-898.91,0.00054246,120]
[320837158,1711609857273,-500.0,0.00054246,120]
[320837159,1711609857283,-509.72798153,0.00054246,120]
[320837160,1711609857292,-500.0,0.00054246,120]
[320837161,1711609857301,-500.0,0.00054246,120]
[320837162,1711609857311,-501.57515113,0.00054246,120]
[320837163,1711609857321,-500.0,0.00054246,120]
[320837164,1711609857330,-505.88435269,0.00054246,120]
[320837165,1711609857344,-512.90436581,0.00054246,120]
[320837166,1711609857354,-503.53028802,0.00054246,120]
[320837167,1711609857364,-500.0,0.00054246,120]
[320837168,1711609857375,-500.0,0.00054246,120]
[320837169,1711609857384,-500.0,0.00054246,120]
[320837170,1711609857394,-500.0,0.00054246,120]
[320837171,1711609857403,-502.6318962,0.00054246,7]
[320837172,1711609857412,-500.0,0.00054246,120]
[320837173,1711609857422,-500.0,0.00054246,120]
[320837174,1711609857432,-500.0,0.00054246,120]
[320837175,1711609857442,-500.0,0.00054246,120]
[320837176,1711609857452,-500.0,0.00054246,120]
[320837177,1711609857462,-500.0,0.00054246,120]
[320837178,1711609857472,-630.90482342,0.00054246,120]
[320837179,1711609857482,-1371.1,0.00054246,120]
[320837180,1711609857491,-754.44,0.00054246,120]
[320837181,1711609857501,-500.0,0.00054246,120]
[320837182,1711609857511,-500.0,0.00054246,120]
[320837183,1711609857521,-500.0,0.00054246,120]
[320837184,1711609857530,-500.0,0.00054246,120]
[320837185,1711609857541,-500.0,0.00054246,120]
[320837186,1711609857550,-500.0,0.00054246,120]
[320837187,1711609857560,-500.0,0.00054246,120]
[320837188,1711609857570,-500.0,0.00054246,120]
[320837189,1711609857581,-500.0,0.00054246,120]
[320837190,1711609857591,-500.0,0.00054246,120]
[320837191,1711609857602,-500.0,0.00054246,120]
[320837192,1711609857611,-500.0,0.00054246,120]
[320837193,1711609857621,-672.2,0.00054246,120]
[320837194,1711609857636,-500.0,0.00054246,120]
[320837195,1711609857645,-507.31800881,0.00054246,120]
[320837196,1711609857654,-500.0,0.00054246,120]
[320837197,1711609857663,-500.0,0.00054246,120]
[320837198,1711609857674,-500.0,0.00054246,120]
[320837199,1711609857684,-500.0,0.00054246,120]
[320837200,1711609857695,-500.0,0.00054246,120]
[320837201,1711609857705,-1079.14,0.00054246,120]
[320837202,1711609857715,-504.74320181,0.00054246,120]
[320837203,1711609857726,-500.0,0.00054246,120]
[320837204,1711609857737,-1079.14,0.00054246,120]
[320837205,1711609857746,-1079.14,0.00054246,120]
[320837206,1711609857757,-500.0,0.00054246,120]
[320837207,1711609857766,-1079.14,0.00054246,120]
[320837208,1711609857776,-1079.14,0.00054246,120]
[320837209,1711609857788,-500.0,0.00054246,120]
[320837210,1711609857797,-1079.14,0.00054246,120]
[320837211,1711609857807,-500.0,0.00054246,120]
[320837212,1711609857817,-500.0,0.00054246,120]
[320837213,1711609857828,-646.4,0.00054246,120]
[320837214,1711609857839,-500.0,0.00054246,120]
[320837215,1711609857849,-573.98,0.00054246,120]
[320837216,1711609857859,-150.0,0.00054246,120]
[320837217,1711609857869,-500.0,0.00054246,120]
[320837218,1711609857887,-500.0,0.00054246,120]
[320837219,1711609857898,-500.0,0.00054246,120]
[320837220,1711609857908,-500.0,0.00054246,120]
[320837221,1711609857918,-500.0,0.00054246,120]
[320837222,1711609857929,-500.0,0.00054246,120]
[320837223,1711609857939,-500.0,0.00054246,120]
[320837224,1711609857948,-500.0,0.00054246,120]
[320837225,1711609857958,-500.0,0.00054246,120]
[320837226,1711609857969,-507.69751572,0.00054246,120]
[320837227,1711609857979,-500.0,0.00054246,120]
[320837228,1711609857989,-639.77,0.00054246,30]
[320837229,1711609857999,-500.0,0.00054246,120]
[320837230,1711609858010,-500.0,0.00054246,120]
[320837231,1711609858020,-501.58122436,0.00054246,120]
[320837232,1711609858029,-500.0,0.00054246,120]
[320837233,1711609858039,-500.0,0.00054246,120]
[320837234,1711609858048,-500.0,0.00054246,120]
[320837235,1711609858059,-502.19533445,0.00054246,30]
[320837236,1711609858070,-504.05027179,0.00054246,120]
[320837237,1711609858080,-500.0,0.00054246,120]
[320837238,1711609858090,-507.1634014,0.00054246,120]
[320837239,1711609858100,-509.79490357,0.00054246,120]
[320837240,1711609858110,-505.53459594,0.00054246,120]
[320837241,1711609858120,-503.46000995,0.00054246,120]
[320837242,1711609858133,-500.0,0.00054246,120]
[320837243,1711609858142,-151.0,0.00054246,120]
[320837244,1711609858152,-151.0,0.00054246,120]
[320837245,1711609858163,-500.0,0.00054246,120]
[320837246,1711609858173,-500.0,0.00054246,120]
[320837247,1711609858183,-500.0,0.00054246,120]
[320837248,1711609858192,-151.0,0.00054246,120]
[320837249,1711609858202,-151.0,0.00054246,120]
[320837250,1711609858211,-508.60911631,0.00054246,120]
[320837251,1711609858221,-504.49090744,0.00054246,120]
[320837252,1711609858230,-151.0,0.00054246,120]
[320837253,1711609858239,-151.0,0.00054246,120]
[320837254,1711609858249,-151.0,0.00054246,120]
[320837255,1711609858258,-151.0,0.00054246,120]
[320837256,1711609858268,-151.0,0.00054246,120]
[320837257,1711609858277,-151.0,0.00054246,120]
[320837258,1711609858286,-151.0,0.00054246,120]
[320837259,1711609858296,-500.0,0.00054246,120]
[320837260,1711609858306,-509.75953417,0.00054246,120]
[320837261,1711609858315,-507.08330521,0.00054246,120]
[320837262,1711609858325,-500.0,0.00054246,120]
[320837263,1711609858334,-504.61,0.00054246,120]
[320837264,1711609858343,-500.0,0.00054246,120]
[320837265,1711609858352,-500.0,0.00054246,120]
[320837266,1711609858362,-500.0,0.00054246,120]
[320837267,1711609858371,-504.3544284,0.00054246,120]
[320837268,1711609858383,-500.0,0.00054246,120]
[320837269,1711609858392,-500.0,0.00054246,120]
[320837270,1711609858401,-506.84690786,0.00054246,120]
[320837271,1711609858411,-500.0,0.00054246,120]
[320837272,1711609858420,-500.0,0.00054246,120]
[320837273,1711609858429,-500.0,0.00054246,120]
[320837274,1711609858439,-503.37647454,0.00054246,120]
[320837275,1711609858448,-500.0,0.00054246,120]
[320837276,1711609858457,-500.0,0.00054246,120]
[320837277,1711609858466,-593.13,0.00054246,120]
[320837278,1711609858475,-500.0,0.00054246,120]
[320837279,1711609858484,-508.40086784,0.00054246,120]
[320837280,1711609858494,-500.0,0.00054246,120]
[320837281,1711609858503,-500.0,0.00054246,120]
[320837282,1711609858512,-619.16381846,0.00054246,120]
[320837283,1711609858521,-500.0,0.00054246,120]
[320837284,1711609858531,-501.22720044,0.00054246,120]
[320837285,1711609858540,-516.41,0.00054246,120]
[320837286,1711609858653,-502.892463,0.00054246,120]
[320837287,1711609858663,-455.35955034,0.00054246,120]
[320837288,1711609858672,-500.0,0.00054246,120]
[320837289,1711609858682,-500.0,0.00054246,120]
[320837290,1711609858691,-500.0,0.00054246,120]
[320837291,1711609858700,-500.0,0.00054246,120]
[320837292,1711609858710,-500.0,0.00054246,120]
[320837293,1711609858719,-500.0,0.00054246,120]
[320837294,1711609858728,-500.0,0.00054246,120]
[320837295,1711609858738,-503.32068262,0.00054246,120]
[320837296,1711609858747,-503.1124266,0.00054246,120]
[320837297,1711609858757,-406.0,0.00054246,120]
[320837298,1711609858767,-500.0,0.00054246,120]
[320837299,1711609858777,-500.0,0.00054246,120]
[320837300,1711609858787,-500.0,0.00054246,120]
[320837301,1711609858797,-500.0,0.00054246,120]
[320837302,1711609858807,-545.74915947,0.00054246,120]
[320837303,1711609858818,-501.93942247,0.00054246,120]
[320837304,1711609858828,-1212.52,0.00054246,120]
[320837305,1711609858837,-500.0,0.00054246,120]
[320837306,1711609858847,-708.68,0.00054246,120]
[320837307,1711609858856,-500.0,0.00054246,120]
[320837308,1711609858865,-500.0,0.00054246,120]
[320837309,1711609858876,-500.0,0.00054246,120]
[320837310,1711609858885,-500.0,0.00054246,120]
[320837311,1711609858896,-500.0,0.00054246,120]
[320837312,1711609858905,-500.0,0.00054246,120]
[320837313,1711609858915,-512.01249317,0.00054246,120]
[320837314,1711609858925,-500.0,0.00054246,120]
[320837315,1711609858935,-500.0,0.00054246,120]
[320837316,1711609858944,-500.0,0.00054246,120]
[320837317,1711609858955,-500.0,0.00054246,120]
[320837318,1711609858966,-505.82264669,0.00054246,120]
[320837319,1711609858975,-500.0,0.00054246,120]
[320837320,1711609858984,-500.0,0.00054246,120]
[320837321,1711609858993,-512.68746088,0.00054246,120]
[320837322,1711609859003,-500.0,0.00054246,120]
[320837323,1711609859013,-500.0,0.00054246,120]
[320837324,1711609859024,-507.79836392,0.00054246,120]
[320837325,1711609859033,-514.80388794,0.00054246,120]
[320837326,1711609859045,-500.0,0.00054246,120]
[320837327,1711609859057,-500.0,0.00054246,120]
[320837328,1711609859066,-151.0,0.00054246,120]
[320837329,1711609859077,-552.17,0.00054246,120]
[320837330,1711609859086,-500.0,0.00054246,120]
[320837331,1711609859097,-151.0,0.00054246,120]
[320837332,1711609859107,-500.0,0.00054246,120]
[320837333,1711609859118,-500.0,0.00054246,120]
[320837334,1711609859128,-531.3216,0.00054246,60]
[320837335,1711609859138,-151.0,0.00054246,120]
[320837336,1711609859148,-500.0,0.00054246,120]
[320837337,1711609859158,-151.0,0.00054246,120]
[320837338,1711609859169,-531.3216,0.00054246,60]
[320837339,1711609859178,-151.0,0.00054246,120]
[320837340,1711609859188,-531.3216,0.00054246,60]
[320837341,1711609859197,-505.52420836,0.00054246,120]
[320837342,1711609859207,-500.0,0.00054246,120]
[320837343,1711609859217,-151.0,0.00054246,120]
[320837344,1711609859227,-531.3216,0.00054246,60]
[320837345,1711609859237,-582.92010287,0.00054246,120]
[320837346,1711609859246,-531.3216,0.00054246,60]
[320837347,1711609859257,-531.3216,0.00054246,60]
[320837348,1711609859266,-500.0,0.00054246,120]
[320837349,1711609859276,-514.24208655,0.00054246,120]
[320837350,1711609859286,-151.0,0.00054246,120]
[320837351,1711609859296,-151.0,0.00054246,120]
[320837352,1711609859306,-531.3216,0.00054246,60]
[320837353,1711609859315,-261.347582,0.00054246,120]
[320837354,1711609859325,-531.3216,0.00054246,60]
[320837355,1711609859335,-500.0,0.00054246,120]
[320837356,1711609859345,-531.3216,0.00054246,60]
[320837357,1711609859354,-531.3216,0.00054246,60]
[320837358,1711609859364,-500.0,0.00054246,120]
[320837359,1711609859374,-500.0,0.00054246,120]
[320837360,1711609859387,-501.14085393,0.00054246,120]
[320837361,1711609859397,-531.3216,0.00054246,60]
[320837362,1711609859406,-531.3216,0.00054246,60]
[320837363,1711609859418,-500.0,0.00054246,120]
[320837364,1711609859427,-374.62635077,0.00054246,120]
[320837365,1711609859438,-500.0,0.00054246,120]
[320837366,1711609859447,-500.0,0.00054246,120]
[320837367,1711609859457,-589.94946348,0.00054246,120]
[320837368,1711609859466,-788.88,0.00054246,120]
[320837369,1711609859476,-505.67879321,0.00054246,120]
[320837370,1711609859486,-1211.79,0.00054246,120]
[320837371,1711609859495,-500.0,0.00054246,120]
[320837372,1711609859506,-503.78889922,0.00054246,120]
[320837373,1711609859515,-1682.67,0.00054246,120]
[320837374,1711609859524,-500.0,0.00054246,120]
[320837375,1711609859534,-500.0,0.00054246,120]
[320837376,1711609859545,-500.0,0.00054246,120]
[320837377,1711609859555,-500.0,0.00054246,120]
[320837378,1711609859566,-500.0,0.00054246,120]
[320837379,1711609859577,-501.50986488,0.00054246,120]
[320837380,1711609859588,-500.0,0.00054246,120]
[320837381,1711609859599,-500.0,0.00054246,120]
[320837382,1711609859609,-501.50746378,0.00054246,120]
[320837383,1711609859619,-541.76,0.00054246,2]
[320837384,1711609859629,-965.9,0.00054246,120]
[320837385,1711609859638,-500.0,0.00054246,120]
[320837386,1711609859646,-500.0,0.00054246,120]
[320837387,1711609859656,-500.0,0.00054246,120]
[320837388,1711609859666,-500.0,0.00054246,120]
[320837389,1711609859676,-500.0,0.00054246,120]
[320837390,1711609859685,-500.0,0.00054246,120]
[320837391,1711609859695,-535.37537836,0.00054246,120]
[320837392,1711609859707,-802.74,0.00054246,2]
[320837393,1711609859716,-1811.55,0.00054246,120]
[320837394,1711609859725,-500.0,0.00054246,120]
[320837395,1711609859736,-500.0,0.00054246,120]
[320837396,1711609859746,-702.57,0.00054246,120]
[320837397,1711609859756,-550.16953376,0.00054246,120]
[320837398,1711609859768,-500.0,0.00054246,120]
[320837399,1711609859779,-581.92661831,0.00054246,120]
[320837400,1711609859789,-500.0,0.00054246,120]
[320837401,1711609859800,-500.0,0.00054246,120]
[320837402,1711609859810,-503.44870614,0.00054246,120]
[320837403,1711609859819,-868.77,0.00054246,120]
[320837404,1711609859829,-510.30025481,0.00054246,120]
[320837405,1711609859839,-506.52,0.00054246,120]
[320837406,1711609859849,-500.0,0.00054246,120]
[320837407,1711609859858,-500.0,0.00054246,120]
[320837408,1711609859868,-509.67514831,0.00054246,120]
[320837409,1711609859880,-500.0,0.00054246,120]
[320837410,1711609859889,-505.80039603,0.00054246,120]
[320837411,1711609859899,-500.0,0.00054246,120]
[320837412,1711609859909,-500.0,0.00054246,120]
[320837413,1711609859918,-500.0,0.00054246,7]
[320837414,1711609859928,-500.0,0.00054246,120]
[320837415,1711609859937,-500.0,0.00054246,120]
[320837416,1711609859947,-500.0,0.00054246,120]
[320837417,1711609859956,-500.0,0.00054246,120]
[320837418,1711609859968,-500.0,0.00054246,120]
[320837419,1711609859978,-986.83,0.00054246,120]
[320837420,1711609859988,-556.53,0.00054246,120]
[320837421,1711609859999,-500.0,0.00054246,120]
[320837422,1711609860008,-500.0,0.00054246,30]
[320837423,1711609860018,-500.0,0.00054246,120]
[320837424,1711609860027,-500.0,0.00054246,120]
[320837425,1711609860038,-500.0,0.00054246,120]
[320837426,1711609860048,-516.35,0.00054246,120]
[320837427,1711609860058,-500.0,0.00054246,120]
[320837428,1711609860067,-500.0,0.00054246,120]
[320837429,1711609860077,-500.0,0.00054246,120]
[320837430,1711609860088,-1252.23,0.00054246,120]
[320837431,1711609860099,-500.0,0.00054246,120]
[320837432,1711609860108,-502.99124595,0.00054246,120]
[320837433,1711609860118,-512.29819261,0.00054246,120]
[320837434,1711609860128,-500.0,0.00054246,120]
[320837435,1711609860138,-500.0,0.00054246,120]
[320837436,1711609860148,-514.07569839,0.00054246,120]
[320837437,1711609860157,-500.0,0.00054246,120]
[320837438,1711609860168,-508.65374865,0.00054246,120]
[320837439,1711609860272,-500.0,0.00054246,120]
[320837440,1711609860282,-500.0,0.00054246,120]
[320837441,1711609860291,-500.0,0.00054246,120]
[320837442,1711609860301,-500.0,0.00054246,120]
[320837443,1711609860310,-1388.34,0.00054246,120]
[320837444,1711609860321,-500.0,0.00054246,120]
[320837445,1711609860330,-510.03782878,0.00054246,120]
[320837446,1711609860339,-500.0,0.00054246,120]
[320837447,1711609860348,-500.0,0.00054246,120]
[320837448,1711609860357,-500.0,0.00054246,120]
[320837449,1711609860367,-500.0,0.00054246,120]
[320837450,1711609860378,-500.0,0.00054246,120]
[320837451,1711609860389,-500.0,0.00054246,120]
[320837452,1711609860398,-503.51154822,0.00054246,120]
[320837453,1711609860407,-500.0,0.00054246,120]
[320837454,1711609860416,-500.0,0.00054246,120]
[320837455,1711609860425,-504.11239754,0.00054246,120]
[320837456,1711609860434,-500.0,0.00054246,120]
[320837457,1711609860444,-500.0,0.00054246,120]
[320837458,1711609860453,-500.0,0.00054246,120]
[320837459,1711609860462,-500.0,0.00054246,120]
[320837460,1711609860473,-500.0,0.00054246,120]
[320837461,1711609860482,-500.0,0.00054246,120]
[320837462,1711609860492,-503.29095299,0.00054246,120]
[320837463,1711609860501,-500.0,0.00054246,120]
[320837464,1711609860511,-1402.91,0.00054246,120]
[320837465,1711609860520,-500.0,0.00054246,120]
[320837466,1711609860530,-500.0,0.00054246,120]
[320837467,1711609860540,-500.0,0.00054246,120]
[320837468,1711609860550,-500.0,0.00054246,120]
[320837469,1711609860560,-501.78068578,0.00054246,120]
[320837470,1711609860569,-513.72943003,0.00054246,120]
[320837471,1711609860579,-457.38035638,0.00054246,120]
[320837472,1711609860588,-500.0,0.00054246,120]
[320837473,1711609860598,-500.0,0.00054246,120]
[320837474,1711609860607,-500.0,0.00054246,120]
[320837475,1711609860616,-210.73430102,0.00054246,120]
[320837476,1711609860627,-374.69910932,0.00054246,120]
[320837477,1711609860636,-404.95,0.00054246,120]